[Event "15. ročník Dobrovický rapid Tereos TTD a.s."]
[Site "Dobrovice, Czech Republic"]
[Date "2020.02.29"]
[Round "7.2"]
[White "Plat Vojtech"]
[Black "Kaderabek Jiri"]
[Result "1/2-1/2"]
[TimeControl "15m + 3s / tah"]
[WhiteElo "2553"]
[BlackElo "2105"]

1. e4 {[%clk 00:15:00]} {[%emt 00:00:05]} d6 {[%clk 00:15:05]} {[%emt
00:00:02]} 2. d4 {[%clk 00:15:01]} {[%emt 00:00:02]} Nf6 {[%clk 00:15:07]}
{[%emt 00:00:01]} 3. Nc3 {[%clk 00:15:03]} g6 {[%clk 00:15:09]} {[%emt
00:00:01]} 4. Bc4 {[%clk 00:15:00]} {[%emt 00:00:05]} Bg7 {[%clk 00:14:51]}
{[%emt 00:00:21]} 5. Qe2 {[%clk 00:15:01]} {[%emt 00:00:02]} c6 {[%clk
00:14:38]} {[%emt 00:00:16]} 6. a4 {[%clk 00:14:58]} {[%emt 00:00:07]} d5
{[%clk 00:14:14]} {[%emt 00:00:27]} 7. exd5 {[%clk 00:14:58]} {[%emt 00:00:03]}
cxd5 {[%clk 00:14:12]} {[%emt 00:00:05]} 8. Bb5+ {[%clk 00:14:57]} {[%emt
00:00:04]} Bd7 {[%clk 00:13:18]} {[%emt 00:00:57]} 9. Nf3 {[%clk 00:14:58]}
{[%emt 00:00:01]} a6 {[%clk 00:13:00]} {[%emt 00:00:20]} 10. Bxd7+ {[%clk
00:14:50]} {[%emt 00:00:11]} Qxd7 {[%clk 00:12:47]} {[%emt 00:00:16]} 11. Ne5
{[%clk 00:14:12]} {[%emt 00:00:42]} Qe6 {[%clk 00:12:35]} {[%emt 00:00:15]} 12.
Ra3 {[%clk 00:13:12]} {[%emt 00:01:03]} Nc6 {[%clk 00:11:30]} {[%emt 00:01:09]}
13. Nxc6 {[%clk 00:13:10]} {[%emt 00:00:05]} Qxe2+ {[%clk 00:11:28]} {[%emt
00:00:05]} 14. Kxe2 {[%clk 00:13:12]} {[%emt 00:00:01]} bxc6 {[%clk 00:11:29]}
{[%emt 00:00:01]} 15. Rb3 {[%clk 00:12:48]} {[%emt 00:00:28]} Nd7 {[%clk
00:11:03]} {[%emt 00:00:29]} 16. Be3 {[%clk 00:12:49]} {[%emt 00:00:02]} Rb8
{[%clk 00:09:55]} {[%emt 00:01:10]} 17. Rxb8+ {[%clk 00:12:41]} {[%emt
00:00:12]} Nxb8 {[%clk 00:09:57]} 18. Na2 {[%clk 00:12:18]} {[%emt 00:00:27]}
Kd7 {[%clk 00:09:14]} {[%emt 00:00:46]} 19. Kd3 {[%clk 00:12:01]} {[%emt
00:00:20]} e5 {[%clk 00:08:36]} {[%emt 00:00:41]} 20. dxe5 {[%clk 00:12:02]}
{[%emt 00:00:02]} Bxe5 {[%clk 00:08:38]} {[%emt 00:00:01]} 21. c3 {[%clk
00:11:53]} {[%emt 00:00:12]} f5 {[%clk 00:08:21]} {[%emt 00:00:21]} 22. h3
{[%clk 00:11:35]} {[%emt 00:00:21]} Kd6 {[%clk 00:08:17]} {[%emt 00:00:07]} 23.
Rd1 {[%clk 00:10:30]} {[%emt 00:01:07]} Nd7 {[%clk 00:07:39]} {[%emt 00:00:41]}
24. Kc2 {[%clk 00:09:54]} {[%emt 00:00:40]} Rb8 {[%clk 00:06:21]} {[%emt
00:01:21]} 25. Nb4 {[%clk 00:09:38]} {[%emt 00:00:19]} f4 {[%clk 00:04:35]}
{[%emt 00:01:49]} 26. Bc1 {[%clk 00:09:39]} {[%emt 00:00:01]} Nc5 {[%clk
00:03:48]} {[%emt 00:00:51]} 27. Re1 {[%clk 00:09:39]} {[%emt 00:00:03]} Rf8
{[%clk 00:02:51]} {[%emt 00:00:59]} 28. a5 {[%clk 00:05:07]} {[%emt 00:04:36]}
Rf5 {[%clk 00:01:55]} {[%emt 00:00:59]} 29. f3 {[%clk 00:05:04]} {[%emt
00:00:07]} Kd7 {[%clk 00:01:15]} {[%emt 00:00:43]} 30. b3 {[%clk 00:04:42]}
{[%emt 00:00:25]} Bc7 {[%clk 00:01:01]} {[%emt 00:00:17]} 31. Na2 {[%clk
00:04:27]} {[%emt 00:00:18]} Ne6 {[%clk 00:00:43]} {[%emt 00:00:20]} 32. b4
{[%clk 00:04:02]} {[%emt 00:00:28]} c5 {[%clk 00:00:45]} {[%emt 00:00:01]} 33.
Bd2 {[%clk 00:03:55]} {[%emt 00:00:10]} d4 {[%clk 00:00:37]} {[%emt 00:00:11]}
34. cxd4 {[%clk 00:03:08]} {[%emt 00:00:51]} Nxd4+ {[%clk 00:00:30]} {[%emt
00:00:10]} 35. Kd3 {[%clk 00:03:03]} {[%emt 00:00:08]} Nc6 {[%clk 00:00:25]}
{[%emt 00:00:08]} 36. Re4 {[%clk 00:01:36]} {[%emt 00:01:30]} Rd5+ {[%clk
00:00:18]} {[%emt 00:00:10]} 37. Ke2 {[%clk 00:01:20]} {[%emt 00:00:19]} cxb4
{[%clk 00:00:19]} {[%emt 00:00:01]} 38. Bxb4 {[%clk 00:01:05]} {[%emt
00:00:18]} Bxa5 {[%clk 00:00:16]} {[%emt 00:00:06]} 39. Bxa5 {[%clk 00:00:27]}
{[%emt 00:00:42]} Rxa5 {[%clk 00:00:18]} {[%emt 00:00:01]} 40. Nb4 {[%clk
00:00:17]} {[%emt 00:00:12]} Nxb4 {[%clk 00:00:17]} {[%emt 00:00:03]} 41. Rxb4
{[%clk 00:00:19]} Ra2+ {[%clk 00:00:17]} {[%emt 00:00:04]} 42. Kf1 {[%clk
00:00:20]} {[%emt 00:00:03]} Ke6 {[%clk 00:00:18]} {[%emt 00:00:03]} 43. Rxf4
{[%clk 00:00:22]} {[%emt 00:00:02]} a5 {[%clk 00:00:12]} {[%emt 00:00:08]} 44.
Kg1 {[%clk 00:00:24]} h5 {[%clk 00:00:09]} {[%emt 00:00:06]} 45. h4 {[%clk
00:00:22]} {[%emt 00:00:05]} Rc2 {[%clk 00:00:10]} {[%emt 00:00:02]} 46. Kh2
{[%clk 00:00:17]} {[%emt 00:00:09]} Rc5 {[%clk 00:00:11]} 47. Rd4 {[%clk
00:00:16]} {[%emt 00:00:04]} Kf5 {[%clk 00:00:13]} {[%emt 00:00:01]} 48. Kg3
{[%clk 00:00:18]} {[%emt 00:00:01]} Rb5 {[%clk 00:00:14]} {[%emt 00:00:01]} 49.
Rd8 {[%clk 00:00:18]} {[%emt 00:00:03]} Kf6 {[%clk 00:00:13]} {[%emt 00:00:03]}
50. Ra8 {[%clk 00:00:20]} {[%emt 00:00:03]} Kf5 {[%clk 00:00:14]} {[%emt
00:00:02]} 51. Ra6 {[%clk 00:00:21]} {[%emt 00:00:01]} Rc5 {[%clk 00:00:17]} 52.
Ra8 {[%clk 00:00:21]} {[%emt 00:00:04]} Rb5 {[%clk 00:00:19]} 53. Rf8+ {[%clk
00:00:23]} {[%emt 00:00:02]} Ke6 {[%clk 00:00:20]} {[%emt 00:00:02]} 54. Kh3
{[%clk 00:00:11]} {[%emt 00:00:15]} Rb6 {[%clk 00:00:20]} {[%emt 00:00:03]} 55.
Ra8 {[%clk 00:00:13]} Rb5 {[%clk 00:00:23]} 56. g4 {[%clk 00:00:14]} {[%emt
00:00:03]} hxg4+ {[%clk 00:00:23]} 57. fxg4 {[%clk 00:00:16]} Rb3+ {[%clk
00:00:24]} {[%emt 00:00:03]} 58. Kg2 {[%clk 00:00:18]} Rb2+ {[%clk 00:00:26]}
59. Kf3 {[%clk 00:00:21]} Rb5 {[%clk 00:00:26]} {[%emt 00:00:03]} 60. Kf4
{[%clk 00:00:22]} {[%emt 00:00:02]} Kf6 {[%clk 00:00:27]} {[%emt 00:00:02]} 61.
g5+ {[%clk 00:00:20]} {[%emt 00:00:05]} Kg7 {[%clk 00:00:27]} {[%emt 00:00:02]}
62. Ra7+ {[%clk 00:00:22]} {[%emt 00:00:02]} Kg8 {[%clk 00:00:29]} {[%emt
00:00:02]} 63. Ke4 {[%clk 00:00:22]} {[%emt 00:00:02]} Kh8 {[%clk 00:00:21]}
{[%emt 00:00:11]} 64. Kd4 {[%clk 00:00:23]} {[%emt 00:00:02]} Kg8 {[%clk
00:00:18]} {[%emt 00:00:05]} 65. Kc4 {[%clk 00:00:24]} {[%emt 00:00:02]} Rf5
{[%clk 00:00:20]} {[%emt 00:00:01]} 66. Kd4 {[%clk 00:00:25]} {[%emt 00:00:03]}
Rb5 {[%clk 00:00:20]} {[%emt 00:00:03]} 67. Ke4 {[%clk 00:00:24]} {[%emt
00:00:04]} Kh8 {[%clk 00:00:20]} {[%emt 00:00:03]} 68. Kf4 {[%clk 00:00:26]}
Kg8 {[%clk 00:00:22]} 69. Kg4 {[%clk 00:00:28]} Rb4+ {[%clk 00:00:24]} {[%emt
00:00:01]} 70. Kg3 {[%clk 00:00:30]} Rb5 {[%clk 00:00:27]} 71. Kf3 {[%clk
00:00:26]} {[%emt 00:00:07]} Kh8 {[%clk 00:00:26]} {[%emt 00:00:03]} 72. Ke3
{[%clk 00:00:27]} {[%emt 00:00:01]} Kg8 {[%clk 00:00:28]} {[%emt 00:00:01]} 73.
Kd4 {[%clk 00:00:29]} {[%emt 00:00:01]} Rf5 {[%clk 00:00:29]} {[%emt 00:00:02]}
74. Ke4 {[%clk 00:00:24]} {[%emt 00:00:09]} 1/2-1/2

[Event "15. ročník Dobrovický rapid Tereos TTD a.s."]
[Site "Dobrovice, Czech Republic"]
[Date "2020.02.29"]
[Round "7.3"]
[White "Zahorbensky Jaroslav"]
[Black "Zwardon Vojtech"]
[Result "0-1"]
[TimeControl "15m + 3s / tah"]
[WhiteElo "2105"]
[BlackElo "2460"]

1. e4 {[%clk 00:15:03]} {[%emt 00:00:02]} c5 {[%clk 00:15:06]} {[%emt
00:00:01]} 2. d3 {[%clk 00:14:57]} {[%emt 00:00:09]} g6 {[%clk 00:15:07]}
{[%emt 00:00:02]} 3. Nf3 {[%clk 00:14:59]} {[%emt 00:00:02]} Bg7 {[%clk
00:15:09]} 4. g3 {[%clk 00:15:00]} {[%emt 00:00:02]} Nc6 {[%clk 00:15:10]} 5.
Bg2 {[%clk 00:15:02]} {[%emt 00:00:01]} d6 {[%clk 00:15:12]} 6. O-O {[%clk
00:15:03]} {[%emt 00:00:02]} Bg4 {[%clk 00:15:14]} {[%emt 00:00:01]} 7. c3
{[%clk 00:15:03]} {[%emt 00:00:03]} Qd7 {[%clk 00:15:16]} 8. Be3 {[%clk
00:14:59]} {[%emt 00:00:08]} Bh3 {[%clk 00:15:17]} {[%emt 00:00:02]} 9. Bxh3
{[%clk 00:14:39]} {[%emt 00:00:22]} Qxh3 {[%clk 00:15:18]} {[%emt 00:00:02]} 10.
Ng5 {[%clk 00:14:41]} {[%emt 00:00:01]} Qd7 {[%clk 00:15:19]} {[%emt 00:00:02]}
11. f4 {[%clk 00:14:30]} {[%emt 00:00:14]} Nf6 {[%clk 00:15:17]} {[%emt
00:00:06]} 12. Kg2 {[%clk 00:14:27]} {[%emt 00:00:07]} h6 {[%clk 00:15:08]}
{[%emt 00:00:12]} 13. Nf3 {[%clk 00:14:21]} {[%emt 00:00:08]} c4 {[%clk
00:15:03]} {[%emt 00:00:08]} 14. Na3 {[%clk 00:14:11]} {[%emt 00:00:13]} cxd3
{[%clk 00:15:03]} {[%emt 00:00:03]} 15. Qxd3 {[%clk 00:14:12]} {[%emt
00:00:02]} O-O {[%clk 00:14:57]} {[%emt 00:00:07]} 16. Rae1 {[%clk 00:13:37]}
{[%emt 00:00:39]} Qe6 {[%clk 00:14:50]} {[%emt 00:00:10]} 17. Bg1 {[%clk
00:10:05]} {[%emt 00:03:36]} Qxa2 {[%clk 00:14:50]} {[%emt 00:00:03]} 18. Qb5
{[%clk 00:09:33]} {[%emt 00:00:34]} Rab8 {[%clk 00:13:18]} {[%emt 00:01:35]} 19.
e5 {[%clk 00:07:50]} {[%emt 00:01:46]} a6 {[%clk 00:13:18]} {[%emt 00:00:02]}
20. Qe2 {[%clk 00:07:12]} {[%emt 00:00:42]} dxe5 {[%clk 00:13:12]} {[%emt
00:00:09]} 21. fxe5 {[%clk 00:07:03]} {[%emt 00:00:12]} Ng4 {[%clk 00:13:09]}
{[%emt 00:00:05]} 22. e6 {[%clk 00:06:53]} {[%emt 00:00:13]} f5 {[%clk
00:12:30]} {[%emt 00:00:42]} 23. Nc4 {[%clk 00:06:32]} {[%emt 00:00:25]} b5
{[%clk 00:11:07]} {[%emt 00:01:25]} 24. Nb6 {[%clk 00:06:22]} {[%emt 00:00:13]}
Nge5 {[%clk 00:11:03]} {[%emt 00:00:08]} 25. Ra1 {[%clk 00:06:19]} {[%emt
00:00:06]} Qxe6 {[%clk 00:11:02]} {[%emt 00:00:03]} 26. Rxa6 {[%clk 00:05:55]}
{[%emt 00:00:27]} f4 {[%clk 00:09:50]} {[%emt 00:01:15]} 27. Nd4 Nxd4 {[%clk
00:09:44]} 28. Bxd4 {[%clk 00:04:46]} {[%emt 00:00:35]} f3+ {[%clk 00:09:46]}
{[%emt 00:00:01]} 29. Rxf3 {[%clk 00:04:46]} {[%emt 00:00:02]} Rxf3 {[%clk
00:09:48]} 30. Bxe5 {[%clk 00:04:43]} {[%emt 00:00:07]} Rf5 {[%clk 00:09:50]}
{[%emt 00:00:01]} 31. Nd7 {[%clk 00:03:32]} {[%emt 00:01:14]} Qxa6 {[%clk
00:09:52]} {[%emt 00:00:02]} 32. Nxb8 {[%clk 00:03:15]} {[%emt 00:00:19]} Qb7+
{[%clk 00:09:54]} 0-1

[Event "15. ročník Dobrovický rapid Tereos TTD a.s."]
[Site "Dobrovice, Czech Republic"]
[Date "2020.02.29"]
[Round "7.4"]
[White "Hosticka Frantisek"]
[Black "Sulc Jakub"]
[Result "1-0"]
[TimeControl "15m + 3s / tah"]
[WhiteElo "2106"]
[BlackElo "1754"]

1. e4 {[%clk 00:15:08]} e6 {[%clk 00:15:07]} {[%emt 00:00:02]} 2. d4 {[%clk
00:15:10]} {[%emt 00:00:01]} d5 {[%clk 00:15:09]} 3. e5 {[%clk 00:15:12]} c5
{[%clk 00:15:11]} {[%emt 00:00:02]} 4. c3 {[%clk 00:15:14]} {[%emt 00:00:02]}
Nc6 {[%clk 00:15:13]} 5. Be3 {[%clk 00:15:16]} Qb6 {[%clk 00:15:09]} {[%emt
00:00:07]} 6. Qd2 {[%clk 00:15:12]} {[%emt 00:00:06]} f6 {[%clk 00:14:59]}
{[%emt 00:00:14]} 7. f4 {[%clk 00:14:53]} {[%emt 00:00:22]} Nh6 {[%clk
00:14:28]} {[%emt 00:00:34]} 8. Nf3 {[%clk 00:14:44]} {[%emt 00:00:12]} Ng4
{[%clk 00:14:09]} {[%emt 00:00:22]} 9. Bg1 {[%clk 00:14:42]} {[%emt 00:00:05]}
Bd7 {[%clk 00:13:41]} {[%emt 00:00:31]} 10. h3 {[%clk 00:14:20]} {[%emt
00:00:26]} Nh6 {[%clk 00:13:41]} {[%emt 00:00:03]} 11. g4 {[%clk 00:14:07]}
{[%emt 00:00:15]} Nf7 {[%clk 00:13:21]} {[%emt 00:00:23]} 12. dxc5 {[%clk
00:13:10]} {[%emt 00:01:00]} Bxc5 {[%clk 00:13:17]} {[%emt 00:00:06]} 13. Bxc5
{[%clk 00:13:12]} {[%emt 00:00:01]} Qxc5 {[%clk 00:13:18]} {[%emt 00:00:02]} 14.
exf6 {[%clk 00:12:41]} {[%emt 00:00:35]} gxf6 {[%clk 00:13:19]} {[%emt
00:00:02]} 15. Na3 {[%clk 00:12:15]} {[%emt 00:00:28]} O-O-O {[%clk 00:12:29]}
{[%emt 00:00:54]} 16. O-O-O {[%clk 00:11:40]} {[%emt 00:00:38]} Ne7 {[%clk
00:11:39]} {[%emt 00:00:52]} 17. Bg2 {[%clk 00:09:12]} {[%emt 00:02:30]} e5
{[%clk 00:11:11]} {[%emt 00:00:32]} 18. fxe5 {[%clk 00:09:00]} {[%emt
00:00:15]} fxe5 {[%clk 00:11:12]} {[%emt 00:00:01]} 19. Ng5 {[%clk 00:08:46]}
{[%emt 00:00:16]} Nxg5 {[%clk 00:10:55]} {[%emt 00:00:21]} 20. Qxg5 {[%clk
00:08:49]} d4 {[%clk 00:10:55]} {[%emt 00:00:04]} 21. Rxd4 {[%clk 00:08:06]}
{[%emt 00:00:46]} Rdg8 {[%clk 00:08:16]} {[%emt 00:02:42]} 22. Qxg8+ {[%clk
00:06:42]} {[%emt 00:01:26]} Rxg8 {[%clk 00:08:12]} {[%emt 00:00:06]} 23. Rc4
{[%clk 00:06:44]} {[%emt 00:00:01]} Qxc4 {[%clk 00:08:01]} {[%emt 00:00:14]} 24.
Nxc4 {[%clk 00:06:46]} {[%emt 00:00:02]} h5 {[%clk 00:06:09]} {[%emt 00:01:55]}
25. Nxe5 {[%clk 00:06:33]} {[%emt 00:00:16]} hxg4 {[%clk 00:06:09]} {[%emt
00:00:02]} 26. Nxd7 {[%clk 00:06:26]} {[%emt 00:00:10]} Kxd7 {[%clk 00:05:52]}
{[%emt 00:00:21]} 27. hxg4 {[%clk 00:06:26]} {[%emt 00:00:03]} b6 {[%clk
00:05:41]} {[%emt 00:00:14]} 28. Bf3 {[%clk 00:06:20]} {[%emt 00:00:09]} Rg7
{[%clk 00:05:17]} {[%emt 00:00:25]} 29. Kd2 {[%clk 00:06:09]} {[%emt 00:00:16]}
Ke6 {[%clk 00:05:10]} {[%emt 00:00:08]} 30. Ke3 {[%clk 00:06:02]} {[%emt
00:00:11]} Nc8 {[%clk 00:04:41]} {[%emt 00:00:33]} 31. Rh6+ {[%clk 00:05:46]}
{[%emt 00:00:19]} Ke5 {[%clk 00:04:33]} {[%emt 00:00:11]} 32. Rh5+ {[%clk
00:05:45]} {[%emt 00:00:05]} Ke6 {[%clk 00:04:32]} {[%emt 00:00:03]} 33. Bd5+
{[%clk 00:05:29]} {[%emt 00:00:19]} Kd6 {[%clk 00:04:14]} {[%emt 00:00:21]} 34.
Bf3 {[%clk 00:05:25]} {[%emt 00:00:07]} Ke6 {[%clk 00:04:11]} {[%emt 00:00:06]}
35. c4 {[%clk 00:05:06]} {[%emt 00:00:23]} Nd6 {[%clk 00:04:03]} {[%emt
00:00:11]} 36. b3 {[%clk 00:05:03]} {[%emt 00:00:06]} Ne8 {[%clk 00:03:12]}
{[%emt 00:00:54]} 37. Bd5+ {[%clk 00:04:38]} {[%emt 00:00:28]} Kd6 {[%clk
00:03:14]} {[%emt 00:00:01]} 38. Kf4 {[%clk 00:04:26]} {[%emt 00:00:15]} Nf6
{[%clk 00:02:34]} {[%emt 00:00:43]} 39. Rh6 {[%clk 00:04:02]} {[%emt 00:00:27]}
Ke7 {[%clk 00:02:35]} {[%emt 00:00:02]} 40. g5 {[%clk 00:03:51]} {[%emt
00:00:14]} Nh7 {[%clk 00:02:35]} {[%emt 00:00:03]} 41. Rh5 {[%clk 00:03:32]}
{[%emt 00:00:21]} Kd6 {[%clk 00:02:13]} {[%emt 00:00:26]} 42. b4 {[%clk
00:03:10]} {[%emt 00:00:24]} b5 {[%clk 00:01:26]} {[%emt 00:00:50]} 43. Rh6+
{[%clk 00:03:12]} {[%emt 00:00:02]} Kc7 {[%clk 00:01:19]} {[%emt 00:00:09]} 44.
Rc6+ {[%clk 00:02:39]} {[%emt 00:00:36]} Kd8 {[%clk 00:00:20]} {[%emt
00:01:02]} 45. g6 {[%clk 00:02:30]} {[%emt 00:00:14]} Nf8 {[%clk 00:00:19]}
{[%emt 00:00:05]} 46. Kf5 {[%clk 00:01:42]} {[%emt 00:00:50]} Nd7 {[%clk
00:00:04]} {[%emt 00:00:18]} 47. cxb5 {[%clk 00:01:21]} {[%emt 00:00:24]} Ke7
{[%clk 00:00:05]} {[%emt 00:00:02]} 48. Re6+ {[%clk 00:01:18]} {[%emt
00:00:05]} Kd8 {[%clk 00:00:07]} {[%emt 00:00:02]} 49. Bc6 {[%clk 00:00:54]}
{[%emt 00:00:27]} 1-0

[Event "15. ročník Dobrovický rapid Tereos TTD a.s."]
[Site "Dobrovice, Czech Republic"]
[Date "2020.02.29"]
[Round "7.5"]
[White "Janicek Jindrich"]
[Black "Velicka Petr"]
[Result "0-1"]
[TimeControl "15m + 3s / tah"]
[WhiteElo "2022"]
[BlackElo "2395"]

1. Nf3 {[%clk 00:15:02]} {[%emt 00:00:03]} d5 {[%clk 00:15:04]} {[%emt
00:00:02]} 2. d4 {[%clk 00:15:03]} {[%emt 00:00:03]} Nf6 {[%clk 00:15:05]}
{[%emt 00:00:02]} 3. c4 {[%clk 00:15:04]} {[%emt 00:00:02]} c6 {[%clk
00:15:07]} 4. Nc3 {[%clk 00:15:06]} {[%emt 00:00:02]} a6 {[%clk 00:15:09]} 5.
a4 {[%clk 00:15:06]} {[%emt 00:00:04]} e6 {[%clk 00:15:10]} {[%emt 00:00:02]} 6.
e3 {[%clk 00:14:44]} {[%emt 00:00:24]} c5 {[%clk 00:15:11]} {[%emt 00:00:03]} 7.
Bd3 {[%clk 00:14:27]} {[%emt 00:00:20]} Nc6 {[%clk 00:15:11]} {[%emt 00:00:03]}
8. O-O {[%clk 00:14:11]} {[%emt 00:00:20]} cxd4 {[%clk 00:15:11]} {[%emt
00:00:03]} 9. exd4 {[%clk 00:14:11]} {[%emt 00:00:03]} Nb4 {[%clk 00:15:12]} 10.
Be2 {[%clk 00:13:54]} {[%emt 00:00:21]} dxc4 {[%clk 00:15:13]} {[%emt
00:00:02]} 11. Bxc4 {[%clk 00:13:55]} {[%emt 00:00:02]} Be7 {[%clk 00:15:14]}
12. Qe2 {[%clk 00:13:38]} {[%emt 00:00:21]} O-O {[%clk 00:15:14]} {[%emt
00:00:03]} 13. Bg5 {[%clk 00:12:26]} {[%emt 00:01:16]} Bd7 {[%clk 00:14:54]}
{[%emt 00:00:23]} 14. Ne5 {[%clk 00:11:46]} {[%emt 00:00:44]} Bc6 {[%clk
00:14:55]} {[%emt 00:00:01]} 15. Rfd1 {[%clk 00:11:39]} {[%emt 00:00:10]} Bd5
{[%clk 00:14:55]} {[%emt 00:00:03]} 16. Bxf6 {[%clk 00:09:40]} {[%emt
00:02:02]} Bxf6 {[%clk 00:14:47]} {[%emt 00:00:11]} 17. Nxd5 {[%clk 00:09:03]}
{[%emt 00:00:41]} Nxd5 {[%clk 00:14:43]} {[%emt 00:00:06]} 18. Qe4 {[%clk
00:08:36]} {[%emt 00:00:29]} Rc8 {[%clk 00:14:29]} {[%emt 00:00:17]} 19. Rac1
{[%clk 00:08:05]} {[%emt 00:00:35]} Bg5 {[%clk 00:12:44]} {[%emt 00:01:48]} 20.
Rc2 {[%clk 00:06:39]} {[%emt 00:01:28]} g6 {[%clk 00:12:35]} {[%emt 00:00:12]}
21. g3 {[%clk 00:06:25]} {[%emt 00:00:18]} Rc7 {[%clk 00:12:20]} {[%emt
00:00:18]} 22. f4 {[%clk 00:06:10]} {[%emt 00:00:18]} Be7 {[%clk 00:12:06]}
{[%emt 00:00:16]} 23. Rdc1 {[%clk 00:05:51]} {[%emt 00:00:22]} Nf6 {[%clk
00:11:59]} {[%emt 00:00:10]} 24. Qe3 {[%clk 00:05:05]} {[%emt 00:00:49]} Qd6
{[%clk 00:11:51]} {[%emt 00:00:10]} 25. Nxf7 {[%clk 00:04:38]} {[%emt
00:00:31]} Rxf7 {[%clk 00:11:37]} {[%emt 00:00:17]} 26. Bxe6 {[%clk 00:04:22]}
{[%emt 00:00:19]} Rxc2 {[%clk 00:11:34]} {[%emt 00:00:06]} 27. Rxc2 {[%clk
00:04:04]} {[%emt 00:00:21]} Kg7 {[%clk 00:11:35]} {[%emt 00:00:02]} 28. Bxf7
{[%clk 00:04:04]} {[%emt 00:00:03]} Kxf7 {[%clk 00:11:37]} {[%emt 00:00:01]} 29.
Qe5 {[%clk 00:03:38]} {[%emt 00:00:29]} Nd7 {[%clk 00:10:13]} {[%emt 00:01:27]}
30. Qe4 {[%clk 00:03:14]} {[%emt 00:00:24]} a5 {[%clk 00:09:26]} {[%emt
00:00:52]} 31. Re2 {[%clk 00:03:04]} {[%emt 00:00:13]} b6 {[%clk 00:09:01]}
{[%emt 00:00:28]} 32. h3 {[%clk 00:02:47]} {[%emt 00:00:20]} Bf6 {[%clk
00:07:24]} {[%emt 00:01:40]} 33. Rd2 {[%clk 00:01:56]} {[%emt 00:00:54]} Qe6
{[%clk 00:07:21]} {[%emt 00:00:06]} 34. Qxe6+ {[%clk 00:01:42]} {[%emt
00:00:17]} Kxe6 {[%clk 00:07:22]} {[%emt 00:00:02]} 35. Kf2 {[%clk 00:01:41]}
{[%emt 00:00:04]} Be7 {[%clk 00:06:31]} {[%emt 00:00:54]} 36. Re2+ {[%clk
00:01:28]} {[%emt 00:00:16]} Kd6 {[%clk 00:06:33]} {[%emt 00:00:01]} 37. Ke3
{[%clk 00:01:30]} {[%emt 00:00:02]} Nf6 {[%clk 00:06:33]} {[%emt 00:00:03]} 38.
Kd3 {[%clk 00:01:24]} {[%emt 00:00:09]} Nd5 {[%clk 00:06:33]} {[%emt 00:00:02]}
39. Kc4 {[%clk 00:01:23]} {[%emt 00:00:04]} Nc7 {[%clk 00:06:27]} {[%emt
00:00:09]} 40. b4 {[%clk 00:01:11]} {[%emt 00:00:15]} axb4 {[%clk 00:06:26]}
{[%emt 00:00:04]} 41. Kxb4 {[%clk 00:01:12]} {[%emt 00:00:02]} Bf6 {[%clk
00:06:20]} {[%emt 00:00:09]} 42. Kc4 {[%clk 00:01:08]} {[%emt 00:00:06]} Ne6
{[%clk 00:06:11]} {[%emt 00:00:12]} 43. d5 {[%clk 00:01:03]} {[%emt 00:00:09]}
Nc7 {[%clk 00:06:13]} {[%emt 00:00:01]} 44. Rd2 {[%clk 00:00:57]} {[%emt
00:00:09]} Bd8 {[%clk 00:05:54]} {[%emt 00:00:22]} 45. g4 {[%clk 00:00:56]}
{[%emt 00:00:04]} Na6 {[%clk 00:05:50]} {[%emt 00:00:06]} 46. f5 {[%clk
00:00:52]} {[%emt 00:00:08]} Nc5 {[%clk 00:05:48]} {[%emt 00:00:04]} 47. fxg6
{[%clk 00:00:46]} {[%emt 00:00:10]} hxg6 {[%clk 00:05:50]} {[%emt 00:00:01]} 48.
Re2 {[%clk 00:00:34]} {[%emt 00:00:14]} g5 {[%clk 00:05:31]} {[%emt 00:00:22]}
49. Kb5 {[%clk 00:00:34]} {[%emt 00:00:03]} Bf6 {[%clk 00:05:10]} {[%emt
00:00:24]} 50. a5 {[%clk 00:00:29]} {[%emt 00:00:08]} bxa5 {[%clk 00:05:12]}
{[%emt 00:00:02]} 51. Rf2 {[%clk 00:00:08]} {[%emt 00:00:24]} Be5 {[%clk
00:04:33]} {[%emt 00:00:42]} 52. Rc2 {[%clk 00:00:09]} {[%emt 00:00:02]} Nb3
{[%clk 00:04:15]} {[%emt 00:00:21]} 53. Rc6+ {[%clk 00:00:04]} {[%emt
00:00:08]} Kxd5 {[%clk 00:04:14]} {[%emt 00:00:04]} 54. Rg6 {[%clk 00:00:05]}
{[%emt 00:00:02]} Nd4+ {[%clk 00:03:48]} {[%emt 00:00:29]} 55. Kxa5 {[%clk
00:00:05]} {[%emt 00:00:02]} Nf3 {[%clk 00:03:50]} 56. Rxg5 {[%clk 00:00:05]}
{[%emt 00:00:05]} Nxg5 {[%clk 00:03:51]} {[%emt 00:00:01]} 57. h4 {[%clk
00:00:07]} Nf3 {[%clk 00:03:52]} {[%emt 00:00:02]} 58. g5 {[%clk 00:00:06]}
{[%emt 00:00:04]} Nxh4 {[%clk 00:03:54]} {[%emt 00:00:01]} 59. Kb6 {[%clk
00:00:07]} {[%emt 00:00:02]} Bf4 {[%clk 00:03:55]} {[%emt 00:00:02]} 60. g6
{[%clk 00:00:08]} {[%emt 00:00:02]} Nxg6 {[%clk 00:03:57]} {[%emt 00:00:01]}
0-1

[Event "15. ročník Dobrovický rapid Tereos TTD a.s."]
[Site "Dobrovice, Czech Republic"]
[Date "2020.02.29"]
[Round "7.6"]
[White "Suran Jan"]
[Black "Divis Jaroslav"]
[Result "1-0"]
[TimeControl "15m + 3s / tah"]
[WhiteElo "2335"]
[BlackElo "2029"]

1. e4 {[%clk 00:15:05]} {[%emt 00:16:02]} e5 {[%clk 00:15:05]} {[%emt
00:00:02]} 2. Nf3 {[%clk 00:15:07]} {[%emt 00:00:01]} Nc6 {[%clk 00:15:05]}
{[%emt 00:00:03]} 3. Bb5 {[%clk 00:15:07]} {[%emt 00:00:02]} Bc5 {[%clk
00:14:59]} {[%emt 00:00:09]} 4. c3 {[%clk 00:14:56]} {[%emt 00:00:14]} d6
{[%clk 00:14:53]} {[%emt 00:00:10]} 5. d4 {[%clk 00:14:48]} {[%emt 00:00:11]}
exd4 {[%clk 00:14:51]} {[%emt 00:00:05]} 6. cxd4 {[%clk 00:14:50]} Bb4+ {[%clk
00:14:51]} {[%emt 00:00:03]} 7. Nc3 {[%clk 00:14:50]} {[%emt 00:00:02]} Bd7
{[%clk 00:14:42]} {[%emt 00:00:12]} 8. O-O {[%clk 00:14:43]} {[%emt 00:00:11]}
Nf6 {[%clk 00:14:24]} {[%emt 00:00:21]} 9. Bg5 {[%clk 00:14:19]} {[%emt
00:00:27]} h6 {[%clk 00:14:19]} {[%emt 00:00:09]} 10. Bxf6 {[%clk 00:13:33]}
{[%emt 00:00:48]} gxf6 {[%clk 00:13:50]} {[%emt 00:00:32]} 11. Nd5 {[%clk
00:11:50]} {[%emt 00:01:47]} Ba5 {[%clk 00:13:39]} {[%emt 00:00:14]} 12. b4
{[%clk 00:11:05]} {[%emt 00:00:48]} Nxb4 {[%clk 00:12:14]} {[%emt 00:01:28]} 13.
Bxd7+ {[%clk 00:11:06]} {[%emt 00:00:02]} Kxd7 {[%clk 00:12:15]} {[%emt
00:00:01]} 14. Nxb4 {[%clk 00:11:08]} {[%emt 00:00:02]} Bxb4 {[%clk 00:12:13]}
{[%emt 00:00:05]} 15. Qa4+ {[%clk 00:11:10]} c6 {[%clk 00:12:10]} {[%emt
00:00:06]} 16. Qxb4 {[%clk 00:11:12]} {[%emt 00:00:01]} 1-0